[Event "MČR juniorů a juniorek v rapid šachu 2023"]
[Site "Czech Republic"]
[Date "2023.09.24"]
[Round "8.4"]
[White "Hlavina, Matous"]
[Black "Vilimek, Vit"]
[Result "0-1"]
[TimeControl "20 min + 5 sec per move"]
[WhiteFideId "386650"]
[BlackFideId "23718218"]
[WhiteElo "2005"]
[BlackElo "1898"]

1. b3 {[%clk 00:20:04]} {[%emt 00:00:05]} d5 {[%clk 00:20:08]} {[%emt
00:00:03]} 2. Bb2 {[%clk 00:20:08]} c5 {[%clk 00:20:12]} 3. e3 {[%clk
00:20:12]} {[%emt 00:00:02]} Nc6 {[%clk 00:20:16]} 4. Bb5 {[%clk 00:20:16]}
{[%emt 00:00:02]} Nf6 {[%clk 00:20:10]} {[%emt 00:00:11]} 5. f4 {[%clk
00:20:12]} {[%emt 00:00:08]} Qc7 {[%clk 00:19:05]} {[%emt 00:01:10]} 6. Nf3
{[%clk 00:20:13]} {[%emt 00:00:03]} Bg4 {[%clk 00:18:49]} {[%emt 00:00:22]} 7.
O-O {[%clk 00:20:10]} {[%emt 00:00:08]} a6 {[%clk 00:18:44]} {[%emt 00:00:11]}
8. Bxc6+ {[%clk 00:20:12]} {[%emt 00:00:02]} Qxc6 {[%clk 00:18:48]} {[%emt
00:00:01]} 9. Qe1 {[%clk 00:20:08]} {[%emt 00:00:09]} e6 {[%clk 00:18:30]}
{[%emt 00:00:23]} 10. Ne5 {[%clk 00:18:58]} {[%emt 00:01:16]} Qc7 {[%clk
00:18:21]} {[%emt 00:00:14]} 11. d3 {[%clk 00:18:40]} {[%emt 00:00:22]} Bf5
{[%clk 00:17:29]} {[%emt 00:00:58]} 12. Nd2 {[%clk 00:18:34]} {[%emt 00:00:11]}
h5 {[%clk 00:17:21]} {[%emt 00:00:13]} 13. Rd1 {[%clk 00:17:17]} {[%emt
00:01:21]} O-O-O {[%clk 00:16:35]} {[%emt 00:00:52]} 14. h3 {[%clk 00:15:18]}
{[%emt 00:02:04]} Rg8 {[%clk 00:15:08]} {[%emt 00:01:31]} 15. Ndf3 {[%clk
00:14:38]} {[%emt 00:00:45]} Nh7 {[%clk 00:14:37]} {[%emt 00:00:35]} 16. g4
{[%clk 00:12:00]} {[%emt 00:02:44]} hxg4 {[%clk 00:11:14]} {[%emt 00:03:29]} 17.
hxg4 {[%clk 00:12:01]} {[%emt 00:00:04]} g5 {[%clk 00:10:41]} {[%emt 00:00:38]}
18. gxf5 {[%clk 00:09:11]} {[%emt 00:02:55]} gxf4+ {[%clk 00:10:44]} {[%emt
00:00:02]} 19. Kf2 {[%clk 00:09:08]} {[%emt 00:00:07]} fxe3+ {[%clk 00:09:16]}
{[%emt 00:01:33]} 20. Qxe3 {[%clk 00:08:56]} {[%emt 00:00:17]} d4 {[%clk
00:04:16]} {[%emt 00:05:05]} 21. Qf4 {[%clk 00:06:51]} {[%emt 00:02:11]} Bd6
{[%clk 00:03:09]} {[%emt 00:01:12]} 22. Rh1 {[%clk 00:05:11]} {[%emt 00:01:45]}
Ng5 {[%clk 00:01:49]} {[%emt 00:01:24]} 23. Rde1 {[%clk 00:02:50]} {[%emt
00:02:26]} Nxf3 {[%clk 00:01:45]} {[%emt 00:00:09]} 24. Qxf3 {[%clk 00:02:38]}
{[%emt 00:00:18]} Bxe5 {[%clk 00:01:43]} {[%emt 00:00:07]} 25. Reg1 {[%clk
00:02:30]} {[%emt 00:00:13]} Bf4 {[%clk 00:00:56]} {[%emt 00:00:52]} 26. Bc1
{[%clk 00:02:03]} {[%emt 00:00:32]} Bxc1 {[%clk 00:01:00]} 27. Rxc1 {[%clk
00:02:06]} {[%emt 00:00:02]} exf5 {[%clk 00:01:01]} {[%emt 00:00:04]} 28. Qxf5+
{[%clk 00:01:44]} {[%emt 00:00:27]} Kb8 {[%clk 00:01:04]} {[%emt 00:00:02]} 29.
Rcg1 {[%clk 00:01:38]} {[%emt 00:00:11]} Rde8 {[%clk 00:00:38]} {[%emt
00:00:26]} 30. Qf3 {[%clk 00:01:03]} {[%emt 00:00:39]} Rxg1 {[%clk 00:00:32]}
{[%emt 00:00:16]} 31. Rxg1 {[%clk 00:01:07]} {[%emt 00:00:02]} Qh2+ {[%clk
00:00:35]} {[%emt 00:00:02]} 32. Rg2 {[%clk 00:01:06]} {[%emt 00:00:06]} Qe5
{[%clk 00:00:35]} {[%emt 00:00:03]} 33. Qg3 {[%clk 00:00:57]} {[%emt 00:00:16]}
Kc8 {[%clk 00:00:19]} {[%emt 00:00:21]} 34. Qxe5 Rxe5 {[%clk 00:00:23]} 35. Rg7
{[%clk 00:00:47]} {[%emt 00:00:06]} Re7 {[%clk 00:00:28]} 36. Rg5 {[%clk
00:00:48]} {[%emt 00:00:04]} b6 {[%clk 00:00:32]} 37. a4 {[%clk 00:00:48]}
{[%emt 00:00:06]} Kc7 {[%clk 00:00:34]} {[%emt 00:00:03]} 38. a5 {[%clk
00:00:51]} {[%emt 00:00:03]} Kc6 {[%clk 00:00:28]} {[%emt 00:00:10]} 39. axb6
{[%clk 00:00:54]} Kxb6 {[%clk 00:00:32]} {[%emt 00:00:02]} 40. Rf5 {[%clk
00:00:58]} Kb5 {[%clk 00:00:32]} {[%emt 00:00:05]} 41. Rf6 {[%clk 00:00:35]}
{[%emt 00:00:28]} a5 {[%clk 00:00:29]} {[%emt 00:00:09]} 42. Rd6 {[%clk
00:00:33]} {[%emt 00:00:07]} Kb4 {[%clk 00:00:27]} {[%emt 00:00:07]} 43. Rd5
{[%clk 00:00:23]} {[%emt 00:00:15]} f6 {[%clk 00:00:19]} {[%emt 00:00:13]} 44.
Rd6 {[%clk 00:00:09]} {[%emt 00:00:19]} Kc3 {[%clk 00:00:16]} {[%emt 00:00:07]}
45. Rxf6 {[%clk 00:00:11]} {[%emt 00:00:04]} Kxc2 {[%clk 00:00:20]} {[%emt
00:00:01]} 46. Rc6 {[%clk 00:00:13]} {[%emt 00:00:02]} Re5 {[%clk 00:00:24]} 47.
Ra6 {[%clk 00:00:16]} {[%emt 00:00:03]} Kxd3 {[%clk 00:00:22]} {[%emt
00:00:07]} 48. Rxa5 {[%clk 00:00:19]} {[%emt 00:00:01]} Kc3 {[%clk 00:00:25]}
{[%emt 00:00:02]} 49. Rb5 {[%clk 00:00:23]} {[%emt 00:00:01]} d3 {[%clk
00:00:27]} {[%emt 00:00:04]} 50. Ra5 {[%clk 00:00:19]} {[%emt 00:00:09]} d2
{[%clk 00:00:25]} {[%emt 00:00:07]} 51. Ra1 {[%clk 00:00:24]} Kb2 {[%clk
00:00:21]} {[%emt 00:00:08]} 0-1

[Event "MČR juniorů a juniorek v rapid šachu 2023"]
[Site "Czech Republic"]
[Date "2023.09.24"]
[Round "8.5"]
[White "Sulc, Jakub"]
[Black "Dolensky, Filip"]
[Result "1-0"]
[TimeControl "20 min + 5 sec per move"]
[WhiteFideId "394050"]
[BlackFideId "399000"]
[WhiteElo "1920"]
[BlackElo "1942"]

1. c4 {[%clk 00:20:08]} {[%emt 00:00:02]} e5 {[%clk 00:19:48]} {[%emt
00:00:22]} 2. Nc3 {[%clk 00:20:10]} {[%emt 00:00:03]} f5 {[%clk 00:19:43]}
{[%emt 00:00:10]} 3. e3 {[%clk 00:20:02]} {[%emt 00:00:13]} Nf6 {[%clk
00:19:46]} {[%emt 00:00:02]} 4. d4 {[%clk 00:19:31]} {[%emt 00:00:36]} d6
{[%clk 00:19:12]} {[%emt 00:00:38]} 5. Nge2 {[%clk 00:19:15]} {[%emt 00:00:22]}
Nc6 {[%clk 00:19:11]} {[%emt 00:00:06]} 6. f3 {[%clk 00:18:20]} {[%emt
00:01:00]} g6 {[%clk 00:18:59]} {[%emt 00:00:17]} 7. g3 {[%clk 00:17:52]}
{[%emt 00:00:33]} Bg7 {[%clk 00:18:44]} {[%emt 00:00:20]} 8. Bg2 {[%clk
00:17:55]} {[%emt 00:00:02]} O-O {[%clk 00:18:39]} {[%emt 00:00:10]} 9. O-O
{[%clk 00:17:41]} {[%emt 00:00:19]} Bd7 {[%clk 00:17:32]} {[%emt 00:01:12]} 10.
a3 {[%clk 00:15:49]} {[%emt 00:01:57]} Qe7 {[%clk 00:16:52]} {[%emt 00:00:44]}
11. b4 {[%clk 00:14:42]} {[%emt 00:01:12]} Nd8 {[%clk 00:15:40]} {[%emt
00:01:17]} 12. Qd3 {[%clk 00:12:37]} {[%emt 00:02:10]} Nf7 {[%clk 00:15:21]}
{[%emt 00:00:24]} 13. Bb2 {[%clk 00:11:34]} {[%emt 00:01:08]} Rae8 {[%clk
00:14:11]} {[%emt 00:01:15]} 14. Rae1 {[%clk 00:10:27]} {[%emt 00:01:12]} c6
{[%clk 00:12:13]} {[%emt 00:02:03]} 15. Qd2 {[%clk 00:05:51]} {[%emt 00:04:41]}
Bh6 {[%clk 00:07:20]} {[%emt 00:04:59]} 16. d5 {[%clk 00:04:58]} {[%emt
00:00:58]} cxd5 {[%clk 00:04:37]} {[%emt 00:02:48]} 17. cxd5 {[%clk 00:03:28]}
{[%emt 00:01:35]} Rc8 {[%clk 00:04:05]} {[%emt 00:00:36]} 18. Rc1 {[%clk
00:02:29]} {[%emt 00:01:05]} Rfe8 {[%clk 00:04:02]} {[%emt 00:00:09]} 19. Na2
{[%clk 00:01:38]} {[%emt 00:00:55]} Bb5 {[%clk 00:03:24]} {[%emt 00:00:42]} 20.
Rxc8 {[%clk 00:00:17]} {[%emt 00:01:27]} Rxc8 {[%clk 00:03:29]} 21. Nac3 {[%clk
00:00:19]} {[%emt 00:00:03]} Bd7 {[%clk 00:03:11]} {[%emt 00:00:23]} 22. Rc1
{[%clk 00:00:14]} {[%emt 00:00:10]} Qd8 {[%clk 00:03:13]} {[%emt 00:00:02]} 23.
f4 {[%clk 00:00:18]} {[%emt 00:00:02]} Bg7 {[%clk 00:03:00]} {[%emt 00:00:18]}
24. e4 {[%clk 00:00:13]} {[%emt 00:00:10]} Qb6+ {[%clk 00:02:53]} {[%emt
00:00:12]} 25. Kh1 {[%clk 00:00:12]} {[%emt 00:00:06]} Ng4 {[%clk 00:02:57]} 26.
Bf3 {[%clk 00:00:11]} {[%emt 00:00:06]} Nfh6 {[%clk 00:01:31]} {[%emt
00:01:32]} 27. Nd1 {[%clk 00:00:11]} {[%emt 00:00:04]} Rxc1 {[%clk 00:01:26]}
{[%emt 00:00:10]} 28. Qxc1 {[%clk 00:00:16]} Nf2+ {[%clk 00:01:20]} {[%emt
00:00:10]} 29. Kg2 {[%clk 00:00:13]} {[%emt 00:00:07]} Nxe4 {[%clk 00:01:16]}
{[%emt 00:00:10]} 30. Bxe4 fxe4 {[%clk 00:01:20]} 31. fxe5 {[%clk 00:00:20]}
{[%emt 00:00:02]} dxe5 {[%clk 00:00:53]} {[%emt 00:00:31]} 32. Ne3 {[%clk
00:00:23]} {[%emt 00:00:02]} Nf5 {[%clk 00:00:51]} {[%emt 00:00:06]} 33. Nc4
{[%clk 00:00:26]} {[%emt 00:00:03]} Qc7 {[%clk 00:00:45]} {[%emt 00:00:12]} 34.
Ne3 {[%clk 00:00:08]} {[%emt 00:00:22]} Qd6 {[%clk 00:00:30]} {[%emt 00:00:20]}
35. Nc3 {[%clk 00:00:11]} {[%emt 00:00:02]} Bh6 {[%clk 00:00:24]} {[%emt
00:00:10]} 36. Nxf5 {[%clk 00:00:12]} {[%emt 00:00:04]} gxf5 {[%clk 00:00:28]}
37. Qe1 {[%clk 00:00:11]} {[%emt 00:00:06]} e3 {[%clk 00:00:29]} {[%emt
00:00:05]} 38. Qe2 {[%clk 00:00:12]} {[%emt 00:00:04]} f4 {[%clk 00:00:25]}
{[%emt 00:00:08]} 39. Qc4 {[%clk 00:00:12]} {[%emt 00:00:05]} Bg4 {[%clk
00:00:11]} {[%emt 00:00:19]} 40. Ne4 {[%clk 00:00:11]} {[%emt 00:00:06]} f3+
{[%clk 00:00:15]} 41. Kf1 {[%clk 00:00:14]} {[%emt 00:00:03]} e2+ {[%clk
00:00:19]} {[%emt 00:00:01]} 42. Ke1 {[%clk 00:00:17]} {[%emt 00:00:01]} Qf8
{[%clk 00:00:09]} {[%emt 00:00:16]} 43. Bxe5 {[%clk 00:00:19]} {[%emt
00:00:03]} f2+ {[%clk 00:00:08]} {[%emt 00:00:06]} 44. Nxf2 {[%clk 00:00:28]}
Bd7 {[%clk 00:00:09]} {[%emt 00:00:09]} 45. d6+ {[%clk 00:00:31]} {[%emt
00:00:01]} Qf7 {[%clk 00:00:13]} {[%emt 00:00:01]} 46. Qxf7+ {[%clk 00:00:35]}
{[%emt 00:00:02]} Kxf7 {[%clk 00:00:18]} 47. Kxe2 {[%clk 00:00:38]} {[%emt
00:00:02]} Ke6 {[%clk 00:00:21]} {[%emt 00:00:02]} 48. Nd3 {[%clk 00:00:41]}
{[%emt 00:00:02]} Bb5 {[%clk 00:00:26]} 49. Bf4 {[%clk 00:00:42]} {[%emt
00:00:03]} Bxf4 50. gxf4 {[%clk 00:00:45]} Kxd6 {[%clk 00:00:32]} {[%emt
00:00:02]} 51. Ke3 {[%clk 00:00:50]} Kd5 {[%clk 00:00:29]} {[%emt 00:00:08]} 52.
Nc5 {[%clk 00:00:51]} {[%emt 00:00:03]} b6 {[%clk 00:00:31]} {[%emt 00:00:03]}
53. Ne4 {[%clk 00:00:54]} {[%emt 00:00:02]} h6 {[%clk 00:00:23]} {[%emt
00:00:11]} 54. Nc3+ {[%clk 00:00:58]} {[%emt 00:00:04]} Kc6 {[%clk 00:00:26]}
{[%emt 00:00:02]} 55. Nxb5 {[%clk 00:01:02]} Kxb5 {[%clk 00:00:30]} 56. Kd4
{[%clk 00:01:05]} {[%emt 00:00:02]} Ka4 {[%clk 00:00:32]} {[%emt 00:00:04]} 57.
f5 {[%clk 00:01:08]} {[%emt 00:00:02]} Kxa3 {[%clk 00:00:37]} 58. Kc3 {[%clk
00:01:11]} {[%emt 00:00:01]} b5 {[%clk 00:00:27]} {[%emt 00:00:15]} 59. f6
{[%clk 00:01:14]} {[%emt 00:00:03]} a5 {[%clk 00:00:31]} 60. bxa5 {[%clk
00:01:16]} {[%emt 00:00:03]} b4 {[%clk 00:00:35]} 61. Kc4 {[%clk 00:01:14]}
{[%emt 00:00:08]} b3 {[%clk 00:00:38]} {[%emt 00:00:02]} 62. f7 {[%clk
00:01:18]} b2 {[%clk 00:00:37]} {[%emt 00:00:07]} 63. f8=Q+ {[%clk 00:01:21]}
Ka2 {[%clk 00:00:41]} {[%emt 00:00:01]} 64. Qf2 {[%clk 00:01:24]} {[%emt
00:00:02]} Ka1 {[%clk 00:00:44]} 65. Qxb2+ {[%clk 00:01:27]} {[%emt 00:00:03]}
Kxb2 {[%clk 00:00:48]} 66. a6 {[%clk 00:01:31]} 1-0

[Event "MČR juniorů a juniorek v rapid šachu 2023"]
[Site "Czech Republic"]
[Date "2023.09.24"]
[Round "8.6"]
[White "Bezdek, Tomas"]
[Black "Slaby, Matej"]
[Result "1/2-1/2"]
[TimeControl "20 min + 5 sec per move"]
[WhiteFideId "23733551"]
[BlackFideId "23734876"]
[WhiteElo "1933"]
[BlackElo "1922"]

1. e4 {[%clk 00:20:09]} {[%emt 00:14:19]} d5 {[%clk 00:20:09]} {[%emt
00:00:01]} 2. exd5 {[%clk 00:20:10]} {[%emt 00:00:05]} Qxd5 {[%clk 00:20:12]}
{[%emt 00:00:01]} 3. d4 {[%clk 00:20:14]} Nc6 {[%clk 00:20:08]} {[%emt
00:00:09]} 4. Nf3 {[%clk 00:20:11]} {[%emt 00:00:08]} e5 {[%clk 00:20:11]}
{[%emt 00:00:02]} 5. dxe5 {[%clk 00:18:39]} {[%emt 00:01:38]} Qxd1+ {[%clk
00:20:01]} {[%emt 00:00:14]} 6. Kxd1 {[%clk 00:18:43]} {[%emt 00:00:02]} Bc5
{[%clk 00:19:55]} {[%emt 00:00:11]} 7. Nc3 {[%clk 00:17:48]} {[%emt 00:00:59]}
Bg4 {[%clk 00:18:54]} {[%emt 00:01:06]} 8. Bb5 {[%clk 00:16:21]} {[%emt
00:01:33]} O-O-O+ {[%clk 00:18:22]} {[%emt 00:00:37]} 9. Ke1 {[%clk 00:15:55]}
{[%emt 00:00:31]} Bxf3 {[%clk 00:14:00]} {[%emt 00:04:27]} 10. gxf3 {[%clk
00:15:59]} Nd4 {[%clk 00:14:04]} {[%emt 00:00:02]} 11. Bd3 {[%clk 00:15:10]}
{[%emt 00:00:53]} Nxf3+ {[%clk 00:14:02]} {[%emt 00:00:08]} 12. Ke2 {[%clk
00:15:08]} {[%emt 00:00:03]} Nxe5 {[%clk 00:14:05]} {[%emt 00:00:06]} 13. Bf5+
{[%clk 00:14:35]} {[%emt 00:00:38]} Kb8 {[%clk 00:14:09]} {[%emt 00:00:02]} 14.
Bf4 {[%clk 00:14:33]} {[%emt 00:00:06]} Nc6 {[%clk 00:12:56]} {[%emt 00:01:18]}
15. Nb5 {[%clk 00:12:43]} {[%emt 00:01:55]} Bb6 {[%clk 00:12:50]} {[%emt
00:00:11]} 16. c3 {[%clk 00:12:41]} {[%emt 00:00:07]} Nge7 {[%clk 00:12:35]}
{[%emt 00:00:20]} 17. Be4 {[%clk 00:10:17]} {[%emt 00:02:29]} Rhe8 {[%clk
00:11:53]} {[%emt 00:00:47]} 18. Kf3 {[%clk 00:09:29]} {[%emt 00:00:54]} a6
{[%clk 00:11:40]} {[%emt 00:00:18]} 19. Na3 {[%clk 00:09:28]} {[%emt 00:00:05]}
Nd5 {[%clk 00:10:43]} {[%emt 00:01:02]} 20. Bxd5 {[%clk 00:08:42]} {[%emt
00:00:52]} Rxd5 {[%clk 00:10:45]} {[%emt 00:00:03]} 21. Nc4 {[%clk 00:08:33]}
{[%emt 00:00:12]} Ba7 {[%clk 00:09:39]} {[%emt 00:01:12]} 22. Rad1 {[%clk
00:08:26]} {[%emt 00:00:12]} Red8 {[%clk 00:08:55]} {[%emt 00:00:49]} 23. Rxd5
{[%clk 00:08:30]} {[%emt 00:00:02]} Rxd5 {[%clk 00:08:59]} 24. Re1 {[%clk
00:08:34]} Kc8 {[%clk 00:08:41]} {[%emt 00:00:24]} 25. Re8+ {[%clk 00:07:40]}
{[%emt 00:00:59]} Rd8 {[%clk 00:08:38]} {[%emt 00:00:07]} 26. Re2 {[%clk
00:07:38]} {[%emt 00:00:06]} b5 {[%clk 00:08:02]} {[%emt 00:00:42]} 27. Nd2
{[%clk 00:05:42]} {[%emt 00:02:01]} h6 {[%clk 00:06:04]} {[%emt 00:02:03]} 28.
h4 {[%clk 00:05:20]} {[%emt 00:00:28]} Rd7 {[%clk 00:05:16]} {[%emt 00:00:52]}
29. Re8+ {[%clk 00:04:21]} {[%emt 00:01:04]} Rd8 {[%clk 00:05:20]} 30. Re2
{[%clk 00:04:24]} {[%emt 00:00:03]} Bc5 {[%clk 00:04:38]} {[%emt 00:00:47]} 31.
Ne4 {[%clk 00:03:39]} {[%emt 00:00:50]} Be7 {[%clk 00:04:41]} {[%emt 00:00:02]}
32. h5 {[%clk 00:02:50]} {[%emt 00:00:53]} Rd7 {[%clk 00:03:10]} {[%emt
00:01:36]} 33. Ng3 {[%clk 00:02:44]} {[%emt 00:00:11]} Nd8 {[%clk 00:02:57]}
{[%emt 00:00:18]} 34. Nf5 {[%clk 00:02:17]} {[%emt 00:00:32]} Ne6 {[%clk
00:02:37]} {[%emt 00:00:25]} 35. Be5 {[%clk 00:01:51]} {[%emt 00:00:31]} Bf8
{[%clk 00:02:41]} 36. Nd4 {[%clk 00:01:19]} {[%emt 00:00:37]} Nxd4+ {[%clk
00:01:48]} {[%emt 00:00:58]} 37. Bxd4 {[%clk 00:01:21]} {[%emt 00:00:03]} Kd8
{[%clk 00:01:38]} {[%emt 00:00:15]} 38. Re4 {[%clk 00:01:04]} {[%emt 00:00:22]}
Rd5 {[%clk 00:00:40]} {[%emt 00:01:03]} 39. Re5 {[%clk 00:00:36]} {[%emt
00:00:33]} Rxe5 {[%clk 00:00:34]} {[%emt 00:00:11]} 40. Bxe5 {[%clk 00:00:40]}
Kd7 {[%clk 00:00:31]} {[%emt 00:00:08]} 41. Ke4 {[%clk 00:00:44]} g6 {[%clk
00:00:32]} {[%emt 00:00:05]} 42. hxg6 {[%clk 00:00:36]} {[%emt 00:00:12]} fxg6
{[%clk 00:00:36]} 43. b3 {[%clk 00:00:40]} {[%emt 00:00:02]} Bd6 {[%clk
00:00:32]} {[%emt 00:00:09]} 44. Bg7 {[%clk 00:00:37]} {[%emt 00:00:08]} h5
{[%clk 00:00:36]} 45. f4 {[%clk 00:00:31]} {[%emt 00:00:11]} Ke6 {[%clk
00:00:37]} {[%emt 00:00:04]} 46. c4 {[%clk 00:00:29]} {[%emt 00:00:07]} c6
{[%clk 00:00:41]} {[%emt 00:00:02]} 47. cxb5 {[%clk 00:00:33]} cxb5 {[%emt
00:00:03]} 48. a4 h4 {[%clk 00:00:40]} {[%emt 00:00:06]} 49. axb5 {[%clk
00:00:39]} {[%emt 00:00:04]} axb5 {[%clk 00:00:45]} 50. Bd4 {[%clk 00:00:42]}
{[%emt 00:00:02]} h3 {[%clk 00:00:36]} {[%emt 00:00:13]} 51. Bg1 {[%clk
00:00:46]} Kd7 {[%clk 00:00:09]} {[%emt 00:00:33]} 52. Kf3 {[%clk 00:00:42]}
{[%emt 00:00:08]} Ke6 {[%clk 00:00:12]} {[%emt 00:00:02]} 53. Ke4 {[%clk
00:00:47]} Bc5 {[%clk 00:00:16]} {[%emt 00:00:02]} 54. Bh2 {[%clk 00:00:49]}
{[%emt 00:00:02]} Bb6 {[%clk 00:00:17]} {[%emt 00:00:05]} 55. Kf3 {[%clk
00:00:47]} {[%emt 00:00:07]} Kf5 {[%clk 00:00:21]} 56. Kg3 {[%clk 00:00:50]}
{[%emt 00:00:02]} Be3 {[%clk 00:00:24]} 57. Kf3 {[%clk 00:00:51]} {[%emt
00:00:04]} Bd2 {[%clk 00:00:28]} 58. Bg3 {[%clk 00:00:52]} {[%emt 00:00:05]}
Bc1 {[%clk 00:00:18]} {[%emt 00:00:15]} 59. Bh2 {[%clk 00:00:54]} {[%emt
00:00:02]} Bb2 {[%clk 00:00:18]} {[%emt 00:00:06]} 60. Kg3 {[%clk 00:00:57]}
{[%emt 00:00:02]} Bc1 {[%clk 00:00:21]} {[%emt 00:00:02]} 61. Kf3 {[%clk
00:01:01]} Bd2 {[%clk 00:00:25]} 62. Bg3 {[%clk 00:01:03]} {[%emt 00:00:02]}
Bc3 {[%clk 00:00:29]} {[%emt 00:00:02]} 63. Bh2 {[%clk 00:01:05]} {[%emt
00:00:03]} Bd4 {[%clk 00:00:30]} {[%emt 00:00:05]} 64. Kg3 {[%clk 00:01:07]}
{[%emt 00:00:02]} Ke4 {[%clk 00:00:29]} {[%emt 00:00:06]} 65. Kxh3 {[%clk
00:01:09]} {[%emt 00:00:02]} Kf3 {[%clk 00:00:32]} {[%emt 00:00:03]} 66. Kh4
{[%clk 00:01:10]} {[%emt 00:00:05]} Be3 {[%clk 00:00:28]} {[%emt 00:00:09]} 67.
Kg5 {[%clk 00:01:12]} {[%emt 00:00:02]} Ke4 {[%clk 00:00:27]} {[%emt 00:00:06]}
68. Bg3 {[%clk 00:01:12]} {[%emt 00:00:04]} Bd2 {[%clk 00:00:30]} {[%emt
00:00:03]} 69. Bf2 {[%clk 00:01:10]} {[%emt 00:00:07]} Bxf4+ {[%clk 00:00:32]}
{[%emt 00:00:03]} 70. Kxg6 {[%clk 00:01:14]} Kd3 {[%clk 00:00:33]} {[%emt
00:00:03]} 71. Kf5 {[%clk 00:01:15]} {[%emt 00:00:04]} Bd2 {[%clk 00:00:33]}
{[%emt 00:00:06]} 72. Ke5 {[%clk 00:01:17]} {[%emt 00:00:03]} Bb4 {[%clk
00:00:31]} {[%emt 00:00:07]} 73. Kd5 {[%clk 00:01:18]} {[%emt 00:00:03]} Kc2
{[%clk 00:00:34]} {[%emt 00:00:02]} 74. Kc6 {[%clk 00:01:21]} {[%emt 00:00:02]}
1/2-1/2